bitfinex/quotes_SOLUSD_20230111
["timestamp","ask_amount","ask_price","bid_price","bid_amount"]
[1673424885999,17.0,16.047,16.031,66.8]
[1673424886191,46.76,16.046,16.031,66.8]
[1673424886730,46.76,16.046,16.032,20.0]
[1673424886924,46.76,16.046,16.033,17.0]
[1673424888418,46.75,16.047,16.033,63.8]
[1673424888626,46.75,16.047,16.033,17.0]
[1673424889037,20.0,16.046,16.033,17.0]
[1673424889876,46.75,16.047,16.033,17.0]
[1673424890917,20.0,16.046,16.033,17.0]
[1673424891987,20.0,16.046,16.032,46.8]
[1673424892927,46.75,16.047,16.033,20.0]
[1673424893143,46.75,16.047,16.032,46.8]
[1673424893351,46.75,16.047,16.033,17.0]
[1673424895559,119.6806,16.048,16.033,17.0]
[1673424895764,119.6806,16.048,16.034,46.79]
[1673424895959,166.4306,16.048,16.035,17.0]
[1673424896169,119.6806,16.048,16.035,17.0]
[1673424896398,20.0,16.047,16.034,17.0]
[1673424896593,20.0,16.047,16.035,46.79]
[1673424896808,20.0,16.047,16.036,17.0]
[1673424898291,20.0,16.047,16.033,46.8]
[1673424898500,46.76,16.046,16.033,46.8]
[1673424898709,20.0,16.047,16.032,46.8]
[1673424898710,66.75,16.047,16.032,46.8]
[1673424899956,66.75,16.047,16.033,17.0]
[1673424900178,66.75,16.047,16.034,46.79]
[1673424900381,66.75,16.047,16.035,17.0]
[1673424900699,20.0,16.047,16.035,17.0]
[1673424902204,20.0,16.047,16.034,17.0]
[1673424902384,20.0,16.047,16.033,17.0]
[1673424902698,46.76,16.046,16.033,17.0]
[1673424902909,66.75,16.047,16.033,17.0]
[1673424904503,66.75,16.047,16.032,46.8]
[1673424904719,66.75,16.047,16.031,66.8]
[1673424905846,66.75,16.047,16.032,17.0]
[1673424907448,46.75,16.047,16.032,17.0]
[1673424908183,20.0,16.046,16.032,17.0]
[1673424911162,66.75,16.047,16.033,46.8]
[1673424911347,66.75,16.047,16.034,17.0]
[1673424911559,20.0,16.047,16.034,17.0]
[1673424911769,20.0,16.047,16.033,17.0]
[1673424917565,166.4306,16.048,16.033,37.0]
[1673424918712,166.4306,16.048,16.033,17.0]
[1673424919014,20.0,16.047,16.033,17.0]
[1673424919221,166.4306,16.048,16.033,37.0]
[1673424919560,20.0,16.047,16.033,17.0]
[1673424921678,46.76,16.046,16.033,17.0]
[1673424921864,46.76,16.046,16.032,46.8]
[1673424923248,46.76,16.046,16.033,17.0]
[1673424924179,46.75,16.047,16.033,17.0]
[1673424927033,20.0,16.046,16.033,17.0]
[1673424932837,20.0,16.046,16.032,46.8]
[1673424933044,20.0,16.046,16.029,115.0113]
[1673424933045,26.35,16.04,16.029,115.0113]
[1673424933255,66.78,16.039,16.029,115.0113]
[1673424933454,20.0,16.038,16.029,115.0113]
[1673424934921,38.62953868,16.038,16.029,115.0113]
[1673424935134,20.0,16.036,16.029,115.0113]
[1673424937772,20.0,16.036,16.028,5.7413954]
[1673424939877,20.0,16.036,16.029,17.0]
[1673424940592,20.0,16.036,16.028,5.7413954]
[1673424941009,1.86677863,16.034,16.028,0.0055954]
[1673424941230,1.86677863,16.034,16.014,46.85]
[1673424941231,2.34725402,16.031,16.014,46.85]
[1673424941441,2.37785859,16.029,16.013,46.85]
[1673424941657,20.0,16.027,16.013,46.85]
[1673424942696,20.0,16.027,16.014,17.0]
[1673424943137,46.81,16.028,16.014,17.0]
[1673424943752,20.0,16.027,16.014,17.0]
[1673424944378,46.81,16.028,16.015,20.0]
[1673424944604,22.37785859,16.029,16.016,63.85]
[1673424944818,20.0,16.028,16.015,46.85]
[1673424945033,20.0,16.028,16.017,17.0]
[1673424945849,20.0,16.026,16.013,46.85]
[1673424946065,20.0,16.026,16.014,17.0]
[1673424951660,20.0,16.026,16.013,46.85]
[1673424953026,20.0,16.026,16.014,17.0]
[1673424954816,20.0,16.026,16.015,46.85]
[1673424955121,20.0,16.026,16.016,17.0]
[1673424955341,20.0,16.026,16.015,46.85]
[1673424955520,20.0,16.026,16.013,46.85]
[1673424955861,17.0,16.025,16.013,46.85]
[1673424956052,17.0,16.025,16.004,46.88]
[1673424956262,17.0,16.025,16.005,20.0]
[1673424956468,46.82,16.024,16.012,46.86]
[1673424956800,66.82,16.026,16.012,46.86]
[1673424957014,20.0,16.026,16.013,17.0]
[1673424957838,20.0,16.026,16.014,46.85]
[1673424958051,20.0,16.026,16.013,17.0]
[1673424958905,17.0,16.025,16.012,46.86]
[1673424959115,17.0,16.025,16.005,20.0]
[1673424959116,17.0,16.025,16.007,20.0]
[1673424959312,17.0,16.025,16.012,46.86]
[1673424960063,20.0,16.024,16.006,46.87]
[1673424960280,20.0,16.024,16.007,20.0]
[1673424960470,20.0,16.024,16.012,46.86]
[1673424961007,114.1518,16.028,16.012,46.86]
[1673424961199,114.1518,16.028,16.014,20.0]
[1673424961409,114.1518,16.028,16.015,63.85]
[1673424962052,20.0,16.027,16.015,63.85]
[1673424962267,66.81,16.027,16.013,46.85]
[1673424962460,66.81,16.027,16.012,158.4706]
[1673424963928,66.81,16.027,16.013,17.0]
[1673424964348,66.81,16.027,16.012,158.4706]
[1673424965744,66.81,16.027,16.013,17.0]
[1673424966673,20.0,16.027,16.014,46.85]
[1673424967092,20.0,16.025,16.012,46.86]
[1673424968050,20.0,16.023,16.006,46.87]
[1673424968256,20.0,16.023,16.012,46.86]
[1673424968464,20.0,16.023,16.007,46.87]
[1673424969427,20.0,16.023,16.012,17.0]
[1673424970165,20.0,16.023,16.009,46.87]
[1673424970363,20.0,16.023,16.007,46.87]
[1673424970890,20.0,16.023,16.007,20.0]
[1673424971103,20.0,16.023,16.008,46.87]
[1673424971432,20.0,16.025,16.008,46.87]
[1673424971621,20.0,16.025,16.012,46.86]
[1673424973634,26.52,16.02,16.012,46.86]
[1673424973827,26.52,16.02,16.007,46.87]
[1673424974038,26.52,16.02,16.012,46.86]
[1673424975403,26.52,16.02,16.003,5.7413954]
[1673424975404,20.0,16.019,16.004,46.88]
[1673424975725,26.59,16.01,16.003,52.6213954]
[1673424976260,26.59,16.01,16.003,5.7413954]
[1673424977400,20.0,16.008,16.003,5.7413954]
[1673424977927,26.59,16.01,16.004,46.88]
[1673424978255,26.59,16.01,16.003,5.7413954]
[1673424979200,20.0,16.013,16.004,46.88]
[1673424979608,20.0,16.013,16.003,5.7413954]
[1673424979834,20.0,16.013,16.004,17.0]
[1673424981847,20.0,16.013,16.003,52.6213954]
[1673424982051,20.0,16.013,16.003,5.7413954]
[1673424982373,26.59,16.01,16.003,5.7413954]
[1673424983631,20.0,16.013,16.003,5.7413954]
[1673424984567,20.0,16.017,16.004,46.88]
[1673424985416,20.0,16.017,16.005,17.0]
[1673424985628,20.0,16.017,16.006,46.87]
[1673424985837,20.0,16.017,16.007,17.0]
[1673424986058,20.0,16.017,16.008,46.87]
[1673424986373,20.0,16.017,16.007,17.0]
[1673424989510,20.0,16.018,16.007,17.0]
[1673424989714,20.0,16.026,16.008,66.87]
[1673424989923,20.0,16.026,16.009,17.0]
[1673424990248,20.0,16.026,16.01,66.86]
[1673424990452,20.0,16.026,16.011,17.0]
[1673424990665,20.0,16.026,16.012,46.86]
[1673424990873,20.0,16.026,16.013,17.0]
[1673424992363,20.0,16.026,16.012,17.0]
[1673424996542,66.82,16.025,16.012,17.0]
[1673425011489,26.48,16.02,16.005,46.88]
[1673425011681,40.0,16.019,16.004,46.88]
[1673425012221,86.84,16.019,16.004,46.88]
[1673425012746,86.84,16.019,16.005,17.0]
[1673425013480,40.0,16.019,16.005,17.0]
[1673425013685,40.0,16.019,16.006,46.87]
[1673425013896,40.0,16.019,16.007,17.0]
[1673425015351,136.9622,16.02,16.007,17.0]
[1673425015352,26.48,16.02,16.007,17.0]
[1673425015564,26.48,16.02,16.008,66.87]
[1673425015898,26.48,16.02,16.009,37.0]
[1673425016216,26.48,16.02,16.01,20.0]
[1673425016847,26.48,16.02,16.011,17.0]
[1673425017479,46.82,16.024,16.012,20.0]
[1673425017787,46.82,16.025,16.012,20.0]
[1673425018630,46.82,16.025,16.011,126.9205]
[1673425021773,46.82,16.025,16.011,173.7805]
[1673425021982,110.6623,16.027,16.012,20.0]
[1673425022193,110.6623,16.027,16.013,63.85]
[1673425023883,110.6623,16.027,16.014,20.0]
[1673425024205,110.6623,16.027,16.015,17.0]
[1673425024602,110.6623,16.027,16.013,46.85]
[1673425024812,20.0,16.025,16.012,46.86]
[1673425025038,20.0,16.025,16.011,156.7805]
[1673425025461,46.82,16.024,16.011,156.7805]
[1673425025866,66.82,16.025,16.011,156.7805]
[1673425026079,66.82,16.025,16.011,109.9205]
[1673425027357,66.82,16.025,16.012,17.0]
[1673425027560,20.0,16.025,16.012,63.86]
[1673425027771,66.82,16.026,16.011,156.7805]
[1673425027969,20.0,16.026,16.013,17.0]
[1673425028180,20.0,16.026,16.013,63.85]
[1673425028919,20.0,16.026,16.013,17.0]
[1673425030332,17.0,16.025,16.012,46.86]
[1673425031898,85.44953868,16.026,16.013,17.0]
[1673425033266,46.82,16.026,16.013,17.0]
[1673425033479,110.6623,16.027,16.014,20.0]
[1673425033708,110.6623,16.027,16.015,63.85]
[1673425034403,110.6623,16.027,16.016,20.0]
[1673425034615,110.6623,16.027,16.017,17.0]
[1673425035457,110.6623,16.027,16.016,17.0]
[1673425036626,110.4867,16.029,16.016,17.0]
[1673425036836,157.2967,16.029,16.016,17.0]
[1673425037048,110.4867,16.029,16.016,17.0]
[1673425037278,20.0,16.028,16.015,17.0]
[1673425037461,20.0,16.028,16.015,63.85]
[1673425038947,20.0,16.028,16.015,17.0]
[1673425039260,20.0,16.028,16.014,17.0]
[1673425039464,20.0,16.028,16.015,46.85]
[1673425039680,20.0,16.028,16.016,17.0]
[1673425039986,38.62953868,16.028,16.016,17.0]
[1673425040609,38.62953868,16.028,16.012,66.86]
[1673425040832,63.81,16.027,16.012,46.86]
[1673425041054,20.0,16.026,16.011,156.7805]
[1673425041258,63.82,16.025,16.011,156.7805]
[1673425041657,17.0,16.025,16.011,156.7805]
[1673425042297,17.0,16.025,16.012,17.0]
[1673425044521,35.62953868,16.025,16.012,17.0]
[1673425044717,18.62953868,16.025,16.012,17.0]
[1673425045683,66.82,16.026,16.012,17.0]
[1673425045891,20.0,16.026,16.012,37.0]
[1673425046199,20.0,16.026,16.012,17.0]
[1673425046607,20.0,16.026,16.012,37.0]
[1673425047254,38.62953868,16.026,16.012,17.0]
[1673425047470,46.82,16.025,16.012,17.0]
[1673425047989,85.44953868,16.026,16.012,17.0]
[1673425049992,38.62953868,16.026,16.012,37.0]
[1673425050297,38.62953868,16.026,16.012,17.0]
[1673425050829,20.0,16.024,16.012,17.0]
[1673425052098,46.82,16.025,16.012,17.0]
[1673425052511,46.82,16.025,16.012,37.0]
[1673425052723,115.0863,16.027,16.012,37.0]
[1673425052724,161.8963,16.027,16.012,83.86]
[1673425053030,115.0863,16.027,16.012,83.86]
[1673425053348,133.71583868,16.027,16.012,83.86]
[1673425055036,20.0,16.026,16.012,83.86]
[1673425055558,20.0,16.026,16.012,63.86]
[1673425057557,133.71583868,16.027,16.012,63.86]
[1673425057769,133.71583868,16.027,16.013,20.0]
[1673425057956,133.71583868,16.027,16.014,17.0]
[1673425058172,133.71583868,16.027,16.012,83.86]
[1673425059123,133.71583868,16.027,16.013,20.0]
[1673425059340,133.71583868,16.027,16.014,17.0]
[1673425060717,20.0,16.026,16.014,17.0]
[1673425061236,20.0,16.026,16.013,17.0]
[1673425064286,115.0863,16.027,16.014,20.0]
[1673425064596,115.0863,16.027,16.016,20.0]
[1673425065003,115.0863,16.027,16.017,17.0]
[1673425065644,46.78,16.037,16.02,26.59]
[1673425065854,108.7683,16.037,16.021,103.83]
[1673425066700,20.0,16.036,16.021,103.83]
[1673425067205,108.7683,16.037,16.021,103.83]
[1673425068364,20.0,16.036,16.021,103.83]
[1673425068786,108.7683,16.037,16.021,103.83]
[1673425074688,20.0,16.036,16.021,83.83]
[1673425077649,108.7683,16.037,16.021,83.83]
[1673425077838,108.7683,16.037,16.022,20.0]
[1673425078054,108.7683,16.037,16.023,63.82]
[1673425080995,108.7683,16.037,16.024,20.0]
[1673425081212,108.7683,16.037,16.025,17.0]
[1673425081424,108.7683,16.037,16.023,63.82]
[1673425082404,18.62953868,16.039,16.023,63.82]
[1673425082591,154.9592,16.045,16.024,59.62221079]
[1673425082896,108.1992,16.045,16.025,64.78]
[1673425083095,108.1992,16.045,16.026,40.96]
[1673425083301,108.1992,16.045,16.027,63.81]
[1673425083719,20.0,16.043,16.027,17.0]
[1673425083933,66.77,16.042,16.027,17.0]
[1673425084148,17.0,16.041,16.027,17.0]
[1673425084365,66.78,16.04,16.027,17.0]
[1673425086684,66.78,16.04,16.026,17.0]
[1673425086893,66.78,16.04,16.026,37.0]
[1673425089408,66.78,16.04,16.026,17.0]
[1673425091723,20.0,16.039,16.026,17.0]
[1673425092671,66.78,16.04,16.026,17.0]
[1673425092881,66.78,16.04,16.026,37.0]
[1673425097524,66.78,16.04,16.026,17.0]
[1673425097926,93.27,16.04,16.026,17.0]
[1673425100891,20.0,16.039,16.026,17.0]
[1673425101204,93.27,16.04,16.026,17.0]
[1673425101407,20.0,16.04,16.027,20.0]
[1673425101600,20.0,16.04,16.028,17.0]
[1673425102663,20.0,16.04,16.027,17.0]
[1673425104882,20.0,16.041,16.028,20.0]
[1673425105196,20.0,16.041,16.029,17.0]
[1673425105410,20.0,16.042,16.029,17.0]
[1673425113076,20.0,16.043,16.029,17.0]
[1673425115599,46.76,16.044,16.03,40.0]
[1673425115814,108.1992,16.045,16.031,63.8]
[1673425116129,108.1992,16.045,16.032,20.0]
[1673425116342,108.1992,16.045,16.033,63.8]
[1673425120741,108.1992,16.045,16.033,17.0]
[1673425122630,150.3495,16.047,16.033,17.0]
[1673425122843,103.5995,16.047,16.034,46.79]
[1673425123061,103.5995,16.047,16.035,17.0]
[1673425123477,20.0,16.046,16.035,17.0]
[1673425124096,103.5995,16.047,16.035,17.0]
[1673425124327,103.5995,16.047,16.034,63.79]
[1673425125051,20.0,16.046,16.034,17.0]
[1673425125273,20.0,16.046,16.033,17.0]
[1673425125477,20.0,16.046,16.034,46.79]
[1673425125692,20.0,16.046,16.035,17.0]
[1673425129138,20.0,16.046,16.034,63.79]
[1673425129352,103.5995,16.047,16.034,63.79]
[1673425129792,20.0,16.046,16.034,17.0]
[1673425130199,20.0,16.046,16.033,17.0]
[1673425130417,20.0,16.046,16.034,46.79]
[1673425130632,103.5995,16.047,16.035,17.0]
[1673425131360,20.0,16.046,16.034,17.0]
[1673425131569,20.0,16.046,16.035,46.79]
[1673425131780,103.5995,16.047,16.036,17.0]
[1673425133458,103.5995,16.047,16.035,63.79]
[1673425135039,103.5995,16.047,16.035,17.0]
[1673425135257,103.5995,16.047,16.034,17.0]
[1673425135467,26.6,16.05,16.035,46.79]
[1673425135667,20.0,16.049,16.036,17.0]
[1673425136415,20.0,16.049,16.035,63.79]
[1673425137047,20.0,16.048,16.035,63.79]
[1673425137361,20.0,16.048,16.035,17.0]
[1673425137548,20.0,16.048,16.034,17.0]
[1673425137763,20.0,16.048,16.035,46.79]
[1673425137974,20.0,16.048,16.036,17.0]
[1673425138514,20.0,16.048,16.035,46.79]
[1673425138515,20.0,16.048,16.032,20.0]
[1673425138710,63.75,16.047,16.03,20.0]
[1673425138923,173.447,16.047,16.03,20.0]
[1673425139145,20.0,16.046,16.03,20.0]
[1673425139348,46.76,16.045,16.029,116.86]
[1673425139549,20.0,16.044,16.029,116.86]
[1673425139755,20.0,16.042,16.029,116.86]
[1673425139974,66.77,16.041,16.029,116.86]
[1673425140194,20.0,16.041,16.029,116.86]
[1673425140811,20.0,16.041,16.03,17.0]
[1673425141443,20.0,16.041,16.026,97.75534779]
[1673425141444,132.68,16.04,16.026,50.93534779]
[1673425141652,83.78,16.039,16.026,50.93534779]
[1673425141979,83.78,16.039,16.011,109.9205]
[1673425142199,26.5,16.03,16.017,46.84]
[1673425142387,20.0,16.038,16.017,46.84]
[1673425142598,46.78,16.037,16.017,46.84]
[1673425143011,17.0,16.036,16.017,46.84]
[1673425143226,66.79,16.035,16.018,40.0]
[1673425143552,46.79,16.035,16.019,63.84]
[1673425143760,46.79,16.035,16.02,20.0]
[1673425143982,46.79,16.035,16.021,17.0]
[1673425144796,46.79,16.035,16.021,37.0]
[1673425148591,46.78,16.037,16.021,83.83]
[1673425149343,46.78,16.037,16.022,20.0]
[1673425149661,46.78,16.037,16.023,17.0]
[1673425150815,46.78,16.037,16.022,17.0]
[1673425151647,20.0,16.036,16.022,17.0]
[1673425152797,46.78,16.037,16.022,17.0]
[1673425153012,46.78,16.037,16.022,37.0]
[1673425153846,46.78,16.037,16.022,17.0]
[1673425155123,20.0,16.036,16.022,17.0]
[1673425155332,46.79,16.035,16.022,17.0]
[1673425157126,17.0,16.034,16.02,136.6769]
[1673425157641,26.43,16.03,16.017,46.84]
[1673425157849,26.43,16.03,16.015,46.85]
[1673425157850,20.0,16.029,16.015,46.85]
[1673425158069,20.0,16.028,16.013,66.85]
[1673425158374,20.0,16.028,16.014,17.0]
[1673425158592,20.0,16.028,16.015,46.85]
[1673425158780,20.0,16.028,16.016,17.0]
[1673425159413,20.0,16.028,16.015,17.0]
[1673425159627,20.0,16.028,16.014,46.85]
[1673425159843,17.0,16.027,16.013,46.85]
[1673425160374,17.0,16.027,16.012,115.5735]
[1673425160375,17.0,16.027,16.012,162.4335]
[1673425160586,20.0,16.026,16.012,162.4335]
[1673425161956,17.0,16.025,16.012,162.4335]
[1673425162900,20.0,16.026,16.012,162.4335]
[1673425163113,20.0,16.026,16.013,17.0]
[1673425165304,20.0,16.026,16.009,46.87]
[1673425165622,20.0,16.026,16.008,46.87]
[1673425165953,17.0,16.025,16.008,66.87]
[1673425166998,17.0,16.025,16.012,17.0]
[1673425167212,17.0,16.025,16.013,46.85]
[1673425167393,17.0,16.025,16.012,63.86]
[1673425169830,115.4599,16.027,16.012,63.86]
[1673425170038,20.0,16.026,16.012,63.86]
[1673425174250,115.4599,16.027,16.012,63.86]
[1673425174572,115.4599,16.027,16.013,20.0]
[1673425174780,115.4599,16.027,16.014,63.85]
[1673425175526,20.0,16.026,16.014,46.85]
[1673425175704,20.0,16.026,16.012,46.86]
[1673425176865,20.0,16.026,16.013,17.0]
[1673425180378,20.0,16.026,16.014,46.85]
[1673425181200,17.0,16.025,16.013,17.0]
[1673425183737,20.0,16.026,16.013,17.0]
[1673425184049,20.0,16.026,16.014,46.85]
[1673425184360,115.4599,16.027,16.014,46.85]
[1673425184569,17.0,16.026,16.014,46.85]
[1673425185195,115.4599,16.027,16.015,20.0]
[1673425185407,115.4599,16.027,16.016,17.0]
[1673425185931,20.0,16.029,16.016,17.0]
[1673425186151,20.0,16.029,16.017,46.84]
[1673425186365,66.79,16.034,16.018,17.0]
[1673425186569,66.79,16.034,16.019,46.84]
[1673425186891,66.79,16.034,16.02,17.0]
[1673425187411,66.79,16.034,16.019,37.0]
[1673425188241,46.78,16.039,16.021,20.0]
[1673425188465,26.57,16.04,16.022,63.83]
[1673425188680,26.57,16.04,16.023,20.0]
[1673425188876,26.57,16.04,16.024,63.82]
[1673425189604,20.0,16.039,16.024,63.82]
[1673425190887,17.0,16.038,16.024,63.82]
[1673425191086,17.0,16.038,16.024,46.82]
[1673425192363,20.0,16.037,16.022,59.16901307]
[1673425192571,17.0,16.036,16.023,46.82]
[1673425192779,17.0,16.036,16.022,105.99901307]
[1673425192981,46.78,16.038,16.022,105.99901307]
[1673425193305,66.78,16.039,16.023,79.16901307]
[1673425193520,18.5,16.039,16.025,20.0]
[1673425193831,18.5,16.039,16.027,20.0]
[1673425194021,18.5,16.039,16.028,63.81]
[1673425194463,18.5,16.039,16.029,20.0]
[1673425194781,18.5,16.039,16.03,17.0]
[1673425199596,20.0,16.041,16.03,17.0]
[1673425200019,20.0,16.04,16.028,46.81]
[1673425200351,37.0,16.039,16.025,66.82]
[1673425200549,20.0,16.039,16.025,66.82]
[1673425201932,20.0,16.039,16.026,17.0]
[1673425202124,20.0,16.039,16.027,46.81]
[1673425202330,20.0,16.039,16.028,17.0]
[1673425202768,20.0,16.04,16.027,17.0]
[1673425202974,20.0,16.04,16.027,37.0]
[1673425203496,20.0,16.04,16.027,20.0]
[1673425203709,17.0,16.039,16.026,46.82]
[1673425203929,17.0,16.039,16.025,66.82]
[1673425204637,17.0,16.039,16.025,46.82]
[1673425206119,17.0,16.039,16.026,20.0]
[1673425207577,17.0,16.039,16.025,66.82]
[1673425208648,17.0,16.039,16.025,46.82]
[1673425209369,17.0,16.039,16.026,20.0]
[1673425209697,17.0,16.039,16.027,46.81]
[1673425210015,17.0,16.039,16.028,20.0]
[1673425213992,17.0,16.039,16.027,46.81]
[1673425214623,17.0,16.039,16.028,20.0]
[1673425215692,46.42,16.04,16.028,20.0]
[1673425220111,17.0,16.039,16.027,46.81]
[1673425220718,46.42,16.04,16.028,20.0]
[1673425221484,46.42,16.04,16.027,46.81]
[1673425223460,17.0,16.039,16.027,46.81]
[1673425238489,17.0,16.039,16.028,20.0]
[1673425238704,46.42,16.04,16.029,46.81]
[1673425239017,46.42,16.04,16.03,20.0]
[1673425240922,46.42,16.04,16.029,46.81]
[1673425241241,83.78,16.039,16.015,118.2567]
[1673425241448,132.84,16.03,16.016,20.0]
[1673425241769,20.0,16.029,16.018,20.0]
[1673425246603,20.0,16.029,16.016,66.85]
[1673425246916,20.0,16.029,16.016,46.85]
[1673425247127,20.0,16.029,16.015,118.2567]
[1673425247319,20.0,16.029,16.016,63.85]
[1673425248478,66.81,16.029,16.016,17.0]
[1673425249117,66.81,16.029,16.016,37.0]
[1673425249651,20.0,16.029,16.017,20.0]
[1673425249842,20.0,16.029,16.018,17.0]
[1673425250477,66.81,16.029,16.015,165.1067]
[1673425250792,66.81,16.029,16.016,17.0]
[1673425251212,17.0,16.028,16.009,112.08532697]
[1673425251417,132.75,16.02,16.004,46.88]
[1673425251649,37.0,16.019,16.005,20.0]
[1673425251860,20.0,16.019,16.004,46.88]
[1673425252066,20.0,16.018,16.004,46.88]
[1673425252712,20.0,16.018,16.005,17.0]
[1673425253745,86.84,16.019,16.005,17.0]
[1673425253974,20.0,16.018,16.005,17.0]
[1673425254374,17.0,16.017,16.003,5.7413954]
[1673425254579,26.33,16.01,16.003,5.7413954]
[1673425255861,26.33,16.01,16.004,17.0]
[1673425258473,20.0,16.016,16.004,17.0]
[1673425260387,63.84,16.017,16.004,17.0]
[1673425260587,46.84,16.017,16.004,17.0]
[1673425260792,66.84,16.018,16.004,17.0]
[1673425260999,17.0,16.017,16.004,17.0]
[1673425261224,66.84,16.018,16.004,17.0]
[1673425261420,20.0,16.018,16.004,63.88]
[1673425262061,20.0,16.018,16.004,46.88]
[1673425262279,46.84,16.017,16.003,52.6213954]
[1673425262467,66.84,16.018,16.003,5.7413954]
[1673425263220,20.0,16.016,16.003,5.7413954]
[1673425264477,20.0,16.016,16.004,17.0]
[1673425264692,66.84,16.018,16.004,17.0]
[1673425265847,17.0,16.017,16.004,17.0]
[1673425266058,20.0,16.016,16.004,17.0]
[1673425273500,20.0,16.016,16.003,5.7413954]
[1673425273719,132.6,16.01,16.003,5.7413954]
[1673425274067,20.0,16.009,16.003,5.7413954]
[1673425274361,40.0,16.009,16.003,5.7413954]
[1673425276348,20.0,16.009,16.003,5.7413954]
[1673425277301,20.0,16.008,16.003,5.7413954]
[1673425277493,37.0,16.008,16.003,5.7413954]
[1673425278132,20.0,16.006,15.993,66.91]
[1673425278337,20.0,16.006,15.993,46.91]
[1673425278772,196.93266138,16.008,15.993,46.91]
[1673425278985,196.93266138,16.008,15.993,66.91]
[1673425279191,215.56220006,16.008,15.993,20.0]
[1673425279508,6.75853104,32.0,15.993,20.0]
[1673425279509,394.3,16.038,15.994,46.91]
[1673425279712,112.9484,16.04,16.0,133.15]
[1673425279914,6.58965,16.039,16.001,178.597]
[1673425280126,132.97,16.03,16.002,20.0]
[1673425280342,46.81,16.029,16.003,65.8]
[1673425280667,20.0,16.028,16.005,20.0]
[1673425280859,46.81,16.027,16.006,83.87]
[1673425281069,46.81,16.027,16.007,20.0]
[1673425281280,17.0,16.026,16.008,63.87]
[1673425281501,46.81,16.027,16.009,40.0]
[1673425281715,46.81,16.027,16.01,63.86]